Workbook

Sheet Calculator
A1: Simplified CI Calculator- Sugarcane Ethanol | D1: Company Name: | E1: ABC Company | G1: Ethanol Production Location:
B2: Composite CI, g/MJ | E2: =((IF($P$34=0, 0, Calculation!O83))*(AC25/(AC25+AD25)))+((IF($P$34=100, 0, Calculation!P83))*(AD25/(AC25+AD25))) -> 46.89450912 | F2: Volume, gal | G2: =AC25+AD25 -> 73293259.86 | H2: Note- to calculate CI after all data entered, go to the "Data" tab in the ribbon above, click "Solver", then click "Solve" and accept the dialogue box after it finds solution.
B5: Mechanized harvesting? | D5: Site-Specific | F5: Exported electricity? | H5: Yes | J5: Juice-to-Ethanol yield, gal/wet tonne cane | M5: =$AD$23 -> 20.08034517 | Q5: Surplus electricity credit after mass allocation, kWh/gal | V5: =IF($H$5="No", 0, AO11) -> 3.204933175 | X5: Electric Transmission and Distribution Loss | AD5: 0.081
A6: Process | Y6: Parameters for Molassess Production
A7: Monthly Data | B7: Cane sourced from self-owned farms | C7: Transport of cane sourced from self-owned farms (monthly weighted average distance) | D7: Cane purchased from other farms | E7: Transport of cane sourced from other farms (monthly weighted average distance) | F7: Total Sugarcane use (Calculated) | G7: Mechanized Harvesting | H7: Filter Cake T&D | I7: Purchased or inter-mill transferred bagasse? | J7: Electricity generated from purchased or inter-mill transferred bagasse | K7: Purchased molasses? | L7: Ethanol produced from purchased molasses | M7: Purchased Electricity from the grid | N7: Inter-mill electricity transferred in | O7: Gross surplus electricity generation | P7: Juice-to-Sugar share (monthly weighted average) | Q7: % Sucrose at gate (monthly weighted average) | R7: Anhydrous ethanol production | S7: Adjusted anhydrous ethanol production | T7: Moisture Content | U7: Hydrous ethanol production | V7: Adjusted hydrous ethanol production | W7: Moisture Content | X7: Sugar production | Y7: Gopal-Kammen Model Parameters | AE7: Ethanol Transport | AI7: Surplus electricity credit calculations
A8: Unit | B8: Metric Tons | C8: Km | D8: Metric Tons | E8: Km | F8: Metric Tons | G8: % | H8: Km | I8: Metric Tons | J8: kWh | K8: Metric Tons | L8: m3 | M8: kWh | N8: kWh | O8: kWh | P8: % | R8: m3 | S8: m3 | T8: % | U8: m3 | V8: m3 | W8: % | X8: Metric Tons | Y8: Mill-specific values for ethanol yield calculation and ethanol production modeling | AE8: Mode | AF8: Share | AG8: Km | AI8: Standard | AJ8: Site-Specific | AK8: =IF(D5="Standard",TRUE, FALSE) -> FALSE | AL8: Yes | AM8: No
A9: Month 1 | B9: 100000 | C9: 50 | D9: 200000 | E9: 50 | F9: =B9+D9 -> 300000 | G9: 0.8 | H9: =(2/$AO$33)+$E$35 -> 53.218688 | I9: 0 | J9: =I9*Reference!$H$82*Reference!$C$84*Reference!$H$83*Reference!$H$84/kWh2Btu -> 0 | K9: 0 | L9: 0 | P9: 0.9 | Q9: 0.135 | S9: =R9-L9*$R$34 -> 0 | V9: =U9-L9*$U$34 -> 0 | Y9: ηj (tonnes of fermentable sugars in juice/tonne of cane) | AD9: =$Q$34-0.01 -> 0.125 | AE9: By HDD from plant to port | AF9: 1 | AG9: 483 | AI9: Surplus allocated based on TRS to sugar and ethanol | AN9: Surplus electricity credit (kWh/gal)
A10: Month 2 | B10: 100000 | C10: 50 | D10: 200000 | E10: 50 | F10: =B10+D10 -> 300000 | G10: 0.8 | H10: =(2/$AO$33)+$E$35 -> 53.218688 | I10: 0 | J10: =I10*Reference!$H$82*Reference!$C$84*Reference!$H$83*Reference!$H$84/kWh2Btu -> 0 | K10: 0 | L10: 0 | M10: 1000000 | N10: 1500000 | P10: 0.9 | Q10: 0.135 | S10: 0 | V10: 0 | Y10: ηs (tonnes of sucrose in final sugar/tonne of sucrose into sugar factory) | AD10: 0 | AK10: kWh/year | AL10: kWh/tonne cane | AN10: Before mass allocation | AO10: after mass allocation
A11: Month 3 | B11: 200000 | C11: 50 | D11: 200000 | E11: 50 | F11: 400000 | G11: 0.8 | H11: 53.218688 | I11: 0 | J11: =I11*Reference!$H$82*Reference!$C$84*Reference!$H$83*Reference!$H$84/kWh2Btu -> 0 | K11: 0 | L11: 0 | M11: 500000 | N11: 200000 | P11: 0.9 | Q11: 0.135 | S11: 0 | V11: 0 | Y11: Sucrose in Molasses (tonnes sucrose in molasses/tonne of sugarcane) | AD11: =AD9*(1-AD10) -> 0.125 | AI11: Molasses-EtOH | AK11: =($O$33-$N$33-$M$33-$J$33)/2*$P$34 -> 234900000 | AL11: =AK11/$F$34 -> 64.35616438 | AN11: =AL11/AC23 -> 3.204933175 | AO11: =AN11*AC32 -> 3.204933175
A12: Month 4 | B12: 100000 | C12: 50 | D12: 200000 | E12: 50 | F12: 300000 | G12: 0.8 | H12: 53.218688 | I12: 0 | J12: =I12*Reference!$H$82*Reference!$C$84*Reference!$H$83*Reference!$H$84/kWh2Btu -> 0 | K12: 0 | L12: 0 | M12: 1000000 | O12: 20000000 | P12: 0.9 | Q12: 0.135 | R12: 8000 | S12: 8000 | T12: 0.003 | U12: 10000 | V12: 10000 | W12: 0.05 | X12: 50000 | Y12: ηe (dry tonnes of EtOH/tonne of fermentable sugars into distillery) | AD12: 0.48 | AE12: By Ocean Tanker from port to CA port | AF12: 1 | AG12: 15000 | AI12: Juice-EtOH | AK12: =($O$33-$N$33-$M$33-$J$33)/2*(1-$P$34) -> 26100000 | AL12: =AK12/$F$34 -> 7.150684932
A13: Month 5 | B13: 100000 | C13: 50 | D13: 200000 | E13: 50 | F13: 300000 | G13: 0.8 | H13: 53.218688 | I13: 0 | J13: =I13*Reference!$H$82*Reference!$C$84*Reference!$H$83*Reference!$H$84/kWh2Btu -> 0 | K13: 0 | L13: 0 | M13: 200000 | N13: 2000000 | O13: 15000000 | P13: 0.9 | Q13: 0.135 | R13: 8000 | S13: 8000 | T13: 0.003 | U13: 10000 | V13: 10000 | W13: 0.05 | X13: 50000 | Y13: LHV of anhydrous EtOH (MMBtu/dry tonne EtOH) | AD13: 25.545515
A14: Month 6 | B14: 100000 | C14: 50 | D14: 200000 | E14: 50 | F14: 300000 | G14: 0.8 | H14: 53.218688 | I14: 0 | J14: =I14*Reference!$H$82*Reference!$C$84*Reference!$H$83*Reference!$H$84/kWh2Btu -> 0 | K14: 0 | L14: 0 | M14: 500000 | N14: 200000 | O14: 15000000 | P14: 0.9 | Q14: 0.135 | R14: 8000 | S14: 8000 | T14: 0.003 | U14: 10000 | V14: 10000 | W14: 0.05 | X14: 50000 | Y14: ms (tonnes of sucrose in final sugar/tonne of final sugar product) | AD14: 0.99 | AE14: By Other Modes
A15: Month 7 | B15: 100000 | C15: 50 | D15: 200000 | E15: 50 | F15: 300000 | G15: 0.8 | H15: 53.218688 | I15: 0 | J15: =I15*Reference!$H$82*Reference!$C$84*Reference!$H$83*Reference!$H$84/kWh2Btu -> 0 | K15: 0 | L15: 0 | M15: 1000000 | O15: 20000000 | P15: 0.9 | Q15: 0.135 | R15: 8000 | S15: 8000 | T15: 0.003 | U15: 10000 | V15: 10000 | W15: 0.05 | X15: 60000 | Y15: mm (tonnes of fermentable sugars in std molasses/tonne of std molasses) | AD15: 0.5
A16: Month 8 | B16: 100000 | C16: 50 | D16: 200000 | E16: 50 | F16: 300000 | G16: 0.8 | H16: 53.218688 | I16: 0 | J16: =I16*Reference!$H$82*Reference!$C$84*Reference!$H$83*Reference!$H$84/kWh2Btu -> 0 | K16: 0 | L16: 0 | M16: 200000 | N16: 2000000 | O16: 20000000 | P16: 0.9 | Q16: 0.135 | R16: 8000 | S16: 8000 | T16: 0.003 | U16: 10000 | V16: 10000 | W16: 0.05 | X16: 80000 | AE16: Specify Mode | AG16: 0
A17: Month 9 | B17: 100000 | C17: 50 | D17: 200000 | E17: 50 | F17: 300000 | G17: 0.8 | H17: 53.218688 | I17: 0 | J17: =I17*Reference!$H$82*Reference!$C$84*Reference!$H$83*Reference!$H$84/kWh2Btu -> 0 | K17: 0 | L17: 0 | M17: 1000000 | N17: 1000000 | O17: 20000000 | P17: 0.9 | Q17: 0.135 | R17: 8000 | S17: 8000 | T17: 0.003 | U17: 10000 | V17: 10000 | W17: 0.05 | X17: 50000 | Y17: Yield of Finished Sugar, Standard Molasses, and Ethanol | AE17: Specify Mode | AG17: 0
A18: Month 10 | B18: 100000 | C18: 50 | D18: 200000 | E18: 50 | F18: 300000 | G18: 0.8 | H18: 53.218688 | I18: 0 | J18: =I18*Reference!$H$82*Reference!$C$84*Reference!$H$83*Reference!$H$84/kWh2Btu -> 0 | K18: 0 | L18: 0 | M18: 1000000 | O18: 0 | P18: 0.9 | Q18: 0.135 | R18: 8000 | S18: 8000 | T18: 0.003 | U18: 10000 | V18: 10000 | W18: 0.05 | X18: 50000 | Y18: Fraction of sugarcane juice sent to finished sugar | AC18: 1 | AD18: 0
A19: Month 11 | B19: 100000 | C19: 50 | D19: 200000 | E19: 50 | F19: 300000 | G19: 0.8 | H19: 53.218688 | I19: 0 | J19: =I19*Reference!$H$82*Reference!$C$84*Reference!$H$83*Reference!$H$84/kWh2Btu -> 0 | K19: 0 | L19: 0 | M19: 1000000 | N19: 500000 | O19: 12000000 | P19: 0.9 | Q19: 0.135 | R19: 8000 | S19: 8000 | T19: 0.003 | U19: 10000 | V19: 10000 | W19: 0.05 | X19: 60000 | Y19: Finished sugar yield (tons of finished sugar/ton of cane) | AC19: =AC18*$AD$9*$AD$10/$AD$14 -> 0 | AD19: =AD18*$AD$9*$AD$10/$AD$14 -> 0
A20: Month 12 | B20: 100000 | C20: 50 | D20: 200000 | E20: 50 | F20: 300000 | G20: 0.8 | H20: 53.218688 | I20: 0 | J20: =I20*Reference!$H$82*Reference!$C$84*Reference!$H$83*Reference!$H$84/kWh2Btu -> 0 | K20: 0 | L20: 0 | M20: 500000 | O20: 1000000 | P20: 0.9 | Q20: 0.135 | R20: 8000 | S20: 8000 | T20: 0.003 | U20: 10000 | V20: 10000 | W20: 0.05 | X20: 50000 | Y20: By-product molasses yield (tones of standard molasses/ton of cane) | AC20: =AC18*$AD$11/$AD$15 -> 0.25 | AD20: =AD18*$AD$11/$AD$15 -> 0
A21: Month 13 | B21: 100000 | C21: 50 | D21: 200000 | E21: 50 | F21: 300000 | G21: 0.8 | H21: 53.218688 | I21: 0 | J21: =I21*Reference!$H$82*Reference!$C$84*Reference!$H$83*Reference!$H$84/kWh2Btu -> 0 | K21: 0 | L21: 0 | P21: 0.9 | Q21: 0.135 | R21: 8000 | S21: 8000 | U21: 10000 | V21: 10000 | Y21: EtOH yield (liters of EtOH/ton cane) | AC21: =$AD$12*$AD$9*(1-AC18*$AD$10)/(Reference!$D$80*$AO$22/$AO$23) -> 68.95725257 | AD21: =$AD$12*$AD$9*(1-AD18*$AD$10)/(Reference!$D$80*$AO$22/$AO$23) -> 68.95725257
A22: Month 14 | B22: 100000 | C22: 50 | D22: 200000 | E22: 50 | F22: 300000 | G22: 0.8 | H22: 53.218688 | I22: 0 | J22: =I22*Reference!$H$82*Reference!$C$84*Reference!$H$83*Reference!$H$84/kWh2Btu -> 0 | K22: 0 | L22: 0 | P22: 0.9 | Q22: 0.135 | R22: 8000 | S22: 8000 | U22: 10000 | V22: 10000 | Y22: EtOH yield (gal of EtOH/ton cane) | AC22: =AC21/$AO$23 -> 18.21658271 | AD22: =AD21/$AO$23 -> 18.21658271 | AM22: g2T | AO22: 1.10231e-06
A23: Month 15 | B23: 100000 | C23: 50 | D23: 200000 | E23: 50 | F23: 300000 | G23: 0.8 | H23: 53.218688 | I23: 0 | J23: =I23*Reference!$H$82*Reference!$C$84*Reference!$H$83*Reference!$H$84/kWh2Btu -> 0 | K23: 0 | L23: 0 | M23: 500000 | P23: 0.9 | Q23: 0.135 | R23: 8000 | S23: 8000 | U23: 10000 | V23: 10000 | Y23: EtOH yield (gal of EtOH/tonne cane) | AC23: =AC22*$AO$24 -> 20.08034517 | AD23: =AD22*$AO$24 -> 20.08034517 | AM23: gal2L | AO23: 3.785411
A24: Month 16 | B24: 100000 | C24: 50 | D24: 200000 | E24: 50 | F24: 300000 | G24: 0.8 | H24: 53.218688 | I24: 0 | J24: =I24*Reference!$H$82*Reference!$C$84*Reference!$H$83*Reference!$H$84/kWh2Btu -> 0 | K24: 0 | L24: 0 | M24: 1000000 | N24: 2000000 | O24: 6000000 | P24: 0.9 | Q24: 0.135 | R24: 8000 | S24: 8000 | T24: 0.003 | U24: 10000 | V24: 10000 | W24: 0.05 | X24: 40000 | AC24: Molasses-EtOH | AD24: Juice-EtOH | AM24: MT2T | AO24: 1.102311311
A25: Month 17 | B25: 100000 | C25: 50 | D25: 200000 | E25: 50 | F25: 300000 | G25: 0.8 | H25: 53.218688 | I25: 0 | J25: =I25*Reference!$H$82*Reference!$C$84*Reference!$H$83*Reference!$H$84/kWh2Btu -> 0 | K25: 0 | L25: 0 | M25: 1000000 | N25: 2500000 | O25: 100000000 | P25: 0.9 | Q25: 0.135 | R25: 8000 | S25: 8000 | T25: 0.003 | U25: 10000 | V25: 10000 | W25: 0.05 | X25: 50000 | Y25: Modeled ethanol production (gal) | AC25: =AC23*$P$34*$F$34 -> 65963933.87 | AD25: =AD23*(1-$P$34)*$F$34 -> 7329325.986
A26: Month 18 | B26: 100000 | C26: 50 | D26: 200000 | E26: 50 | F26: 300000 | G26: 0.8 | H26: 53.218688 | I26: 0 | J26: =I26*Reference!$H$82*Reference!$C$84*Reference!$H$83*Reference!$H$84/kWh2Btu -> 0 | K26: 0 | L26: 0 | M26: 1500000 | N26: 2000000 | O26: 60000000 | P26: 0.9 | Q26: 0.135 | R26: 8000 | S26: 8000 | T26: 0.003 | U26: 10000 | V26: 10000 | W26: 0.05 | X26: 25000 | Y26: Annual adjusted reported ethanol production (gal) | AB26: =((SUMPRODUCT(S9:S32,(1-T9:T32))+SUMPRODUCT(V9:V32,(1-W9:W32)))*AO26)/2 -> 48682692.58 | AD26: =SUM(AC25+AD25) -> 73293259.86 | AM26: m32gal | AO26: 264.1721071
A27: Month 19 | B27: 100000 | C27: 50 | D27: 200000 | E27: 50 | F27: 300000 | G27: 0.8 | H27: 53.218688 | I27: 0 | J27: =I27*Reference!$H$82*Reference!$C$84*Reference!$H$83*Reference!$H$84/kWh2Btu -> 0 | K27: 0 | L27: 0 | M27: 1200000 | O27: 50000000 | P27: 0.9 | Q27: 0.135 | R27: 8000 | S27: 8000 | T27: 0.003 | U27: 10000 | V27: 10000 | W27: 0.05 | X27: 60000 | Y27: Difference between reported and modeled | AB27: =AB26-(AC25+AD25) -> -24610567.28
A28: Month 20 | B28: 100000 | C28: 50 | D28: 200000 | E28: 50 | F28: 300000 | G28: 0.8 | H28: 53.218688 | I28: 0 | J28: =I28*Reference!$H$82*Reference!$C$84*Reference!$H$83*Reference!$H$84/kWh2Btu -> 0 | K28: 0 | L28: 0 | M28: 1000000 | N28: 2000000 | O28: 25000000 | P28: 0.9 | Q28: 0.135 | R28: 8000 | S28: 8000 | T28: 0.003 | U28: 10000 | V28: 10000 | W28: 0.05 | X28: 40000 | AM28: Ethanol energy density (MJ/gal) | AO28: 80.53241303
A29: Month 21 | B29: 100000 | C29: 50 | D29: 200000 | E29: 50 | F29: 300000 | G29: 0.8 | H29: 53.218688 | I29: 0 | J29: =I29*Reference!$H$82*Reference!$C$84*Reference!$H$83*Reference!$H$84/kWh2Btu -> 0 | K29: 0 | L29: 0 | M29: 2000000 | O29: 30000000 | P29: 0.9 | Q29: 0.135 | R29: 8000 | S29: 8000 | T29: 0.003 | U29: 10000 | V29: 10000 | W29: 0.05 | X29: 40000 | Y29: Modeled annual sugar production (tonnes) | AC29: =AC19*$P$34*$F$34 -> 0 | AM29: Ethanol LHV (Btu/gal) | AO29: 76330
A30: Month 22 | B30: 100000 | C30: 50 | D30: 200000 | E30: 50 | F30: 300000 | G30: 0.8 | H30: 53.218688 | I30: 0 | J30: =I30*Reference!$H$82*Reference!$C$84*Reference!$H$83*Reference!$H$84/kWh2Btu -> 0 | K30: 0 | L30: 0 | O30: 50000000 | P30: 0.9 | Q30: 0.135 | R30: 8000 | S30: 8000 | T30: 0.003 | U30: 10000 | V30: 10000 | W30: 0.05 | X30: 60000 | Y30: Difference between reported and modeled | AC30: =X33/2-AC29 -> 437500 | AD30: =ABS(AC30) -> 437500 | AM30: kWh2Btu | AO30: 3412.141642
A31: Month 23 | B31: 100000 | C31: 50 | D31: 200000 | E31: 50 | F31: 300000 | G31: 0.8 | H31: 53.218688 | I31: 0 | J31: =I31*Reference!$H$82*Reference!$C$84*Reference!$H$83*Reference!$H$84/kWh2Btu -> 0 | K31: 0 | L31: 0 | O31: 60000000 | P31: 0.9 | Q31: 0.135 | R31: 8000 | S31: 8000 | T31: 0.003 | U31: 10000 | V31: 10000 | W31: 0.05 | X31: 20000 | AM31: Btu2J | AO31: 1055.05585
A32: Month 24 | B32: 100000 | C32: 50 | D32: 200000 | E32: 50 | F32: 300000 | G32: 0.8 | H32: 53.218688 | I32: 0 | J32: =I32*Reference!$H$82*Reference!$C$84*Reference!$H$83*Reference!$H$84/kWh2Btu -> 0 | K32: 0 | L32: 0 | O32: 50000000 | P32: 0.9 | Q32: 0.135 | R32: 8000 | S32: 8000 | T32: 0.003 | U32: 10000 | V32: 10000 | W32: 0.05 | X32: 40000 | Y32: Mass allocation for upstream emissions | AC32: =AD11/AD9 -> 1
A33: 2-yr Total | B33: =SUM(B9:B32) -> 2500000 | D33: =SUM(D9:D32) -> 4800000 | F33: =SUM(F9:F32) -> 7300000 | G33: =AVERAGE(G9:G32) -> 0.8 | H33: =AVERAGE(H9:H32) -> 53.218688 | J33: =SUM(J9:J32) -> 0 | M33: =SUM(M9:M32) -> 16100000 | N33: =SUM(N9:N32) -> 15900000 | O33: =SUM(O9:O32) -> 554000000 | P33: =AVERAGE(P9:P32) -> 0.9 | Q33: =AVERAGE(Q9:Q32) -> 0.135 | R33: =SUM(R9:R32) -> 168000 | T33: =AVERAGE(T9:T32) -> 0.003 | U33: =SUM(U9:U32) -> 210000 | W33: =AVERAGE(W9:W32) -> 0.05 | X33: =SUM(X9:X32) -> 875000 | AM33: km2mi | AO33: 0.6213711922
A34: annual avg | D34: Mi -> | E34: =(SUMPRODUCT(B9:B32,C9:C32)+SUMPRODUCT(D9:D32,E9:E32))/(SUM(B9:B32)+SUM(D9:D32))*$AO$33 -> 31.06855961 | F34: =F33/2 -> 3650000 | G34: =IF(D5="Standard", 65%, $G$33) -> 0.8 | H34: =H33*AO33 -> 33.06855961 | I34: <- Mi | P34: =P33 -> 0.9 | Q34: =Q33 -> 0.135 | R34: =R33/(R33+U33) -> 0.4444444444 | U34: =1-R34 -> 0.5555555556 | X34: =X33/2 -> 437500
D35: Km: -> | E35: =(SUMPRODUCT(B9:B32,C9:C32)+SUMPRODUCT(D9:D32,E9:E32))/(SUM(B9:B32)+SUM(D9:D32)) -> 50 | AB35: =40219504*2 -> 80439008
AM38: =2/AO33 -> 3.218688

Sheet Calculation
B1: References for Sugarcane Ethanol Pathways | E1: Note: all grey cells are standard values.
C2: Sugarcane Farming | O2: Molasses CI (g/MJ) | P2: Juice CI (g/MJ) | Q2: Cane transport (HDD) | S2: =Calculator!$E$34 -> 31.06855961 | T2: miles | U2: filter cake transport | W2: =$S$2+2 -> 33.06855961 | X2: miles | Y2: Mecha harvesting | AA2: =Calculator!$G$34 -> 0.8
C3: Sugarcane Farming | D3: Sugarcane Farming Fertilizer Use by Nutrient (grams of nutrient/tonne) | H3: Sugarcane Farming Pesticide Use (grams/tonne) | J3: Sugarcane Straw Field Burning | K3: Mechanized Harvesting | L3: Sugarcane Transportation | M3: Sugarcane Filtercake Transportation
B4: Total Emissions: grams/mmBtu of fuel throughput, except as noted | C4: Per tonne | Q4: HDD per mile | R4: MD (2miles) | U4: per ton-mile
B5: VOC | C5: 10.50410569 | D5: 5.251454014 | E5: 0.08092913902 | F5: 0.09566714738 | G5: 0.02177654316 | H5: 0.09025073055 | I5: 0.005927021114 | J5: 1499.4 | K5: =-J5*$AA$2 -> -1199.52 | L5: =(Q5*$S$2+R5)/$Q$18 -> 1.466299422 | M5: =U5*$W$2*$Q$21*$Q$19/(1-65%) -> 0.02217496883 | N5: =SUM(C5:M5)/Calculator!$AC$23/EtOH_LHV*10^6 -> 207.0932362 | O5: =N5*R37/Btu2J*Calculator!$AC$32 -> 0.6117596391 | P5: =SUM(C5:M5)/Calculator!$AD$23/EtOH_LHV*10^6*R37/Btu2J -> 0.6117596391 | Q5: 0.03764382804 | R5: 0.160664944 | U5: 0.07418048467
B6: CO | C6: 139.1962048 | D6: 6.099298418 | E6: 0.3291802046 | F6: 0.6378473725 | G6: 0.1349421426 | H6: 0.7355814922 | I6: 0.06538401238 | J6: 19706.4 | K6: -15765.12 | L6: 5.08420517 | M6: 0.07688886018 | N6: =SUM(C6:M6)/Calculator!$AC$23/EtOH_LHV*10^6 -> 2670.811034 | O6: =N6*R38/Btu2J*Calculator!$AC$32 -> 3.977977818 | P6: =SUM(C6:M6)/Calculator!$AD$23/EtOH_LHV*10^6*R38/Btu2J -> 3.977977818 | Q6: 0.1305251454 | R6: 0.5570850856 | U6: 0.2572113159
B7: NOx | C7: 54.51334279 | D7: 6.013525809 | E7: 1.494682995 | F7: 1.827111747 | G7: 0.3559908587 | H7: 2.000938586 | I7: 0.1612632723 | J7: 535.5 | K7: -428.4 | L7: 13.66125487 | M7: 0.2066003004 | Q7: 0.350720952 | R7: 1.49688714 | U7: 0.6911265819
B8: PM10 | C8: 3.741863902 | D8: 1.42516058 | E8: 0.4263273539 | F8: 0.2116569699 | G8: 0.03366602299 | H8: 0.2586264132 | I8: 0.01385583761 | J8: 1670.76 | K8: -1336.608 | L8: 0.3008172364 | M8: 0.004549284235 | Q8: 0.00772278305 | R8: 0.03296106083 | U8: 0.01521842542
B9: PM2.5 | C9: 3.458528053 | D9: 1.170453256 | E9: 0.3317422767 | F9: 0.167795279 | G9: 0.01759646423 | H9: 0.1729133273 | I9: 0.01110018581 | J9: 835.38 | K9: -668.304 | L9: 0.2693476385 | M9: 0.004073366873 | Q9: 0.006914874301 | R9: 0.02951288298 | U9: 0.01362636995
B10: SOx | C10: 3.155618284 | D10: 1.277020409 | E10: 18.85254352 | F10: 0.7283827675 | G10: 0.1444343723 | H10: 2.580126902 | I10: 0.09355171338 | J10: 85.68 | K10: -68.544 | L10: 1.644703131 | M10: 0.02487298306 | Q10: 0.04222392845 | R10: 0.1802129446 | U10: 0.08320597665
B11: CH4 | C11: 21.03349396 | D11: 8.207896458 | E11: 0.3373615863 | F11: 0.6558880011 | G11: 0.1388986519 | H11: 1.076083836 | I11: 0.07107902664 | J11: 578.34 | K11: -462.672 | L11: 7.020561952 | M11: 0.1061725458 | N11: =SUM(C11:M11)/Calculator!$AC$23/EtOH_LHV*10^6 -> 100.6799368 | O11: =N11*R39/Btu2J*Calculator!$AC$32 -> 2.3856542 | P11: =SUM(C11:M11)/Calculator!$AD$23/EtOH_LHV*10^6*R39/Btu2J -> 2.3856542 | Q11: 0.1802366031 | R11: 0.7692550212 | U11: 0.3551721296
B12: N2O | C12: 0.1981204767 | D12: 5.885149931 | E12: 0.004842966686 | F12: 0.009471831815 | G12: 0.001632928042 | H12: 0.01463073571 | I12: 0.0008223158268 | J12: 14.994 | K12: -11.9952 | L12: 0.07879958809 | M12: 0.001191692764 | N12: =(SUM(C12:M12)+D16)/Calculator!$AC$23/EtOH_LHV*10^6 -> 33.15202866 | O12: =N12*R40/Btu2J*Calculator!$AC$32 -> 9.363774004 | P12: =(SUM(C12:M12)+D16)/Calculator!$AD$23/EtOH_LHV*10^6*R40/Btu2J -> 9.363774004 | Q12: 0.00202299619 | R12: 0.008634206097 | U12: 0.003986492493
B13: CO2 | C13: 7288.102583 | D13: 2946.837961 | E13: 179.4873501 | F13: 364.8095662 | G13: 105.1705886 | H13: 664.0133325 | I13: 42.47772388 | J13: 355469.235 | K13: -284375.388 | L13: 5315.03081 | M13: 80.37965564 | N13: =(SUM(C13:M13)+D14+F14+J14+K14)/Calculator!$AC$23/EtOH_LHV*10^6 -> 7360.612994 | O13: =N13/Btu2J*Calculator!$AC$32 -> 6.976515029 | P13: =(SUM(C13:M13)+D14+F14+J14+K14)/Calculator!$AD$23/EtOH_LHV*10^6/Btu2J -> 6.976515029 | Q13: 136.4510569 | R13: 582.3770471 | U13: 268.8888475
B14: CO2 from Land use change | D14: 616 | E14: CO2 from urea use | F14: 1125.696 | G14: CO2 from CaCO3 use | J14: -392700 | K14: 314160 | L14: CO2 uptaken from the air
B15: VOC from bulk terminal | D15: 35.16196838 | E15: NO from N fertilizer and above/below ground biomass
B16: VOC from refueling station | D16: 41.61973748 | E16: N2O from N fertilizer and above/below ground biomass
B18: Sugar Production | Q18: 0.90718474 | R18: T2MT
B19: gCO2e/wet tonne of cane | C19: 3700 | O19: =$C$19/Calculator!$AC$23/Calculator!$AO$28 -> 2.288020114 | Q19: 0.001102311311 | R19: kg2T
C21: Sugarcane Ethanol Production | Q21: =5*30%/6/87.1*1000 -> 2.870264064 | R21: Application (kg dry filtercake or L vinasse/MT sugarcane)
C22: per gallon
B23: Total Emissions: grams/mmBtu of fuel throughput, except as noted | C23: Residual oil | D23: per dry ton bagasse | E23: bagasse, per gallon | F23: lime, per wet tonne | G23: lime, per gallon | H23: Ethanol Production: Non-Combustion Emissions | I23: Ethanol production | AA23: Sugarcane Bagasse (grams/mmBtu fuel burned)
B24: VOC | C24: 0.0002055675388 | D24: 98.8808257 | E24: =D24*$T$25 -> 0.7599293357 | F24: 0.06792342466 | G24: =F24/Calculator!$AD$23 -> 0.003382582525 | H24: 2.239 | I24: =C24+E24+G24 -> 0.7635174858 | T24: dry ton bagasse/gallon | AA24: Small Industrial Boiler
B25: CO | C25: 0.001531354339 | D25: 3490.000353 | E25: 26.82171827 | F25: 0.7290415977 | G25: =F25/Calculator!$AD$23 -> 0.03630622839 | I25: 26.85955586 | T25: =1/Calculator!$AD$23*(1-Reference!$C$84)/$Q$18*Reference!$C$83 -> 0.007685305319 | Z25: VOC | AA25: 7.986
B26: NOx | C26: 0.005385272699 | D26: 946.1035277 | E26: 7.271094474 | F26: 1.11067644 | G26: =F26/Calculator!$AD$23 -> 0.05531162091 | I26: 7.331791368 | Z26: CO | AA26: 281.866
B27: PM10 | C27: 0.001151201658 | D27: 1072.249014 | E27: 8.24056105 | F27: 0.1636266186 | G27: =F27/Calculator!$AD$23 -> 0.008148595914 | H27: 0.856 | I27: 8.249860847 | Z27: NOx | AA27: 76.411
B28: PM2.5 | C28: 0.0005662225885 | D28: 536.1306978 | E28: 4.120328104 | F28: 0.1034253932 | G28: =F28/Calculator!$AD$23 -> 0.005150578455 | H28: 0.14552 | I28: 4.126044905 | Z28: PM10 | AA28: 86.599
B29: SOx | C29: 0.02094494581 | D29: 519.7496144 | E29: 3.994434476 | F29: 1.971474949 | G29: =F29/Calculator!$AD$23 -> 0.09817933567 | I29: 4.113558758 | Z29: PM2.5 | AA29: 43.3
B30: CH4 | C30: 0.003146316486 | D30: 391.883062 | E30: 3.011740981 | F30: 0.698446134 | G30: =F30/Calculator!$AD$23 -> 0.0347825761 | I30: 3.049669874 | Z30: SOx | AA30: 41.977
B31: N2O | C31: 5.670130886e-05 | D31: 52.25107494 | E31: 0.4015654642 | F31: 0.004234143235 | G31: =F31/Calculator!$AD$23 -> 0.0002108600823 | I31: 0.4018330255 | Z31: CH4 | AA31: 31.65
B32: CO2 | C32: 2.827292713 | D32: 1533227.15 | E32: 11783.31877 | F32: 1114.867893 | G32: =F32/Calculator!$AD$23 -> 55.52035506 | I32: 11841.66642 | Z32: N2O | AA32: 4.22
B33: CO2 from Land use change | H33: -1540097.294 | I33: =H33*T25 -> -11836.11792 | J33: CO2 credit from biomass burning | Z33: CO2 | AA33: 123829.3869
B34: VOC from bulk terminal
B35: VOC from refueling station
R36: GWP
B37: Non-Biogenic Carbon from bagassee burned | D37: (grams/mmBtu fuel burned) | G37: emissions (grams) | H37: gCO2E | Q37: VOC | R37: 3.116666667
B38: CH4 | D38: =$AA$31 -> 31.65 | G38: =D38*Reference!$H$82/10^6*Reference!$C$83*Reference!$C$84*Calculator!$F$34 -> 220740314.4 | H38: =G38*$R$39 -> 5518507859 | J38: Allocated to sugar (Molasses) | O38: =$H$40*Calculator!$P$34*(1-eta_s)/(Calculator!AC25*Calculator!$AO$28) -> 2.420889 | P38: =O38 -> 2.420889 | Q38: CO | R38: 1.571428571
B39: N2O | D39: =$AA$32 -> 4.22 | G39: =D39*Reference!$H$82/10^6*Reference!$C$83*Reference!$C$84*Calculator!$F$34 -> 29432041.92 | H39: =G39*R40 -> 8770748491 | J39: Allocated to juice-EtOH | Q39: CH4 | R39: 25
H40: =SUM(H38:H39) -> 1.428925635e+10 | Q40: N2O | R40: 298
B41: Residual oil | O41: =0.1230449655856 -> 0.1230449656 | P41: =O41 -> 0.1230449656
B42: Lime | G42: 14.10017023 | O42: =G42/Calculator!$AD$23 -> 0.7021876421 | P42: =O42 -> 0.7021876421
B44: Surplus electricity credit | C44: =(-Calculator!V5)*kWh2Btu -> -10935.68594 | D44: Btu/gal | Q44: Grams per mmBtu of Electricity Available at User Sites (Brazil Mix)
C45: g/gal | F45: g/mmBtu | I45: g/MJ | O45: =SUM(I46:I54) -> -3.982221086 | P45: =O45 -> -3.982221086 | Q45: VOC | R45: 7.090388587
B46: VOC | C46: =$C$44*(1-Calculator!$AD$5)*Calculation!R45/10^6 -> -0.07125766352 | F46: =C46/EtOH_LHV*10^6*$S$55 -> -0.9340182483 | I46: =F46*R37/Btu2J -> -0.002759117956 | Q46: CO | R46: 120.9098296
B47: CO | C47: =$C$44*(1-Calculator!$AD$5)*Calculation!R46/10^6 -> -1.215131139 | F47: -15.92747505 | I47: =F47*R38/Btu2J -> -0.02372280989 | Q47: NOx | R47: 94.60726107
B48: NOx | C48: =$C$44*(1-Calculator!$AD$5)*Calculation!R47/10^6 -> -0.9507930762 | F48: -12.46263264 | Q48: PM10 | R48: 66.78464867
B49: PM10 | C49: =$C$44*(1-Calculator!$AD$5)*Calculation!R48/10^6 -> -0.6711787323 | F49: -8.797554577 | Q49: PM2.5 | R49: 46.71273142
B50: PM2.5 | C50: =$C$44*(1-Calculator!$AD$5)*Calculation!R49/10^6 -> -0.4694580637 | F50: -6.153477068 | Q50: SOx | R50: 102.5363465
B51: SOx | C51: =$C$44*(1-Calculator!$AD$5)*Calculation!R50/10^6 -> -1.030479555 | F51: -13.50713259 | Q51: CH4 | R51: 69.97419443
B52: CH4 | C52: =$C$44*(1-Calculator!$AD$5)*Calculation!R51/10^6 -> -0.7032333334 | F52: -9.217714051 | I52: =F52*R39/Btu2J -> -0.2184176802 | Q52: N2O | R52: 1.917998711
B53: N2O | C53: =$C$44*(1-Calculator!$AD$5)*Calculation!R52/10^6 -> -0.01927568639 | F53: -0.252658338 | I53: =F53*R40/Btu2J -> -0.0713632219 | Q53: CO2 | R53: 29361.4596
B54: CO2 | C54: =$C$44*(1-Calculator!$AD$5)*Calculation!R53/10^6 -> -295.0795973 | F54: -3867.790704 | I54: =F54/Btu2J -> -3.665958256
Q55: Ethanol T&D loss factor | S55: 1.000504498
B61: Ethanol transportation and distribution
C62: Ethanol produced in Brazil, and used in U.S. | Q62: Ethanol transport in Brazil | T62: Brazilian port to US
C63: Pipeline | D63: Rail | E63: Truck | F63: Ocean Tanker | G63: Barge | H63: Pipeline | I63: Rail | J63: Truck | K63: Truck | Q63: Pipeline | R63: Rail | S63: Truck | T63: Ocean Tanker | U63: Barge | V63: Pipeline | W63: Rail | X63: Truck | Y63: Truck
Q64: 0 | R64: 0 | S64: =Calculator!AG9*Calculator!$AO$33 -> 300.1222859 | T64: =Calculator!AG12*Calculator!$AO$33 -> 9320.567884 | X64: 40 | Y64: 50
B66: Total Emissions: grams/mmBtu fuel transported | M66: EtOH T&D | S66: per mile | T66: per mile
B67: VOC | E67: =S67*$S$64 -> 0.6532605306 | F67: =T67*$T$64 -> 5.002040489 | J67: 0.08706591432 | K67: 0.1088323929 | M67: =SUM(C67:K67)+SUM(J77:J78) -> 25.60019933 | O67: =M67*R37/Btu2J -> 0.07562375764 | P67: =O67 -> 0.07562375764 | S67: 0.002176647858 | T67: 0.0005366669232
B68: CO | E68: 2.2650971 | F68: 11.45756707 | J68: 0.3018898905 | K68: 0.3773623631 | M68: =SUM(C68:K68) -> 14.40191642 | O68: =M68*R38/Btu2J -> 0.02145060183 | P68: =O68 -> 0.02145060183 | S68: 0.007547247262 | T68: 0.001229277788
B69: NOx | E69: 6.086313936 | F69: 126.1852421 | J69: 0.8111778729 | K69: 1.013972341 | M69: 134.0967063 | S69: 0.02027944682 | T69: 0.01353836415
B70: PM10 | E70: 0.1340190309 | F70: 10.73773031 | J70: 0.01786192325 | K70: 0.02232740406 | M70: 10.91193867 | S70: 0.0004465480813 | T70: 0.00115204679
B71: PM2.5 | E71: 0.119998807 | F71: 9.875790541 | J71: 0.01599332174 | K71: 0.01999165218 | M71: 10.03177432 | S71: 0.0003998330435 | T71: 0.001059569617
B72: SOx | E72: 0.7327423203 | F72: 0.8644186937 | J72: 0.09765916825 | K72: 0.1220739603 | M72: 1.816894143 | S72: 0.002441479206 | T72: 9.274313588e-05
B73: CH4 | E73: 3.127775922 | F73: 6.187712664 | J73: 0.4168668666 | K73: 0.5210835832 | M73: 10.25343904 | O73: =M73*R39/Btu2J -> 0.2429596271 | P73: =O73 -> 0.2429596271 | S73: 0.01042167166 | T73: 0.0006638772167
B74: N2O | E74: 0.0351065137 | F74: 0.1268705765 | J74: 0.004678961257 | K74: 0.005848701572 | M74: 0.1725047531 | O74: =M74*R40/Btu2J -> 0.04872388169 | P74: =O74 -> 0.04872388169 | S74: 0.0001169740314 | T74: 1.361189341e-05
B75: CO2 | E75: 2367.933722 | F75: 5461.745641 | J75: 315.5958533 | K75: 394.4948166 | M75: 8539.770034 | O75: =M75/Btu2J -> 8.094140262 | P75: =O75 -> 8.094140262 | S75: 7.889896333 | T75: 0.5859885052
B77: VOC from bulk terminal | J77: 6.667
B78: VOC from refueling station | J78: 13.082
M80: CI (feedstock+fuel) | O80: =SUM(O5:O75) -> 33.35049946 | P80: =SUM(P5:P75) -> 31.06247934
M81: iLUC | O81: 11.8 | P81: =O81 -> 11.8 | S81: Denaturant
M82: Denaturant | O82: =$T$83-$T$82*(O80+O81) -> 1.964422983 | P82: =$T$83-$T$82*(P80+P81) -> 2.048309916 | S82: Energy % Denaturant in D-EtOH | T82: 0.03666354674
M83: Total CI (g/MJ) | O83: =SUM(O80:O82) -> 47.11492244 | P83: =SUM(P80:P82) -> 44.91078926 | S83: Addition | T83: 3.619800431

Sheet Reference
B1: References for Sugarcane Ethanol Pathways
B2: Feedstock Type | C2: Sugarcane Juice | D2: Molasses | E2: Sources
B3: Juice-to-Sugar share, % | D3: User Defined
B4: Sucrose at gate | D4: User Defined
B5: a. Farming Energy
B6: Total Farming Energy | C6: 95,000 Btu/tonne | E6: GREET 1 2013
B7: Diesel fuel | C7: 36385
B8: Gasoline | C8: 11685
B9: Natural gas | C9: 20425
B10: Liquefied petroleum gas | C10: 17860
B11: Electricity | C11: 8550
B12: b. Fertilizer Use
B13: Nitrogen | C13: 800 g/tonne | E13: GREET 1 2013
B14: P2O5 | C14: 300
B15: K2O | C15: 1000
B16: CaCO3 | C16: 5200
B17: Herbicide | C17: 45
B18: Pesticide | C18: 2.5
B19: c. N2O in soil
B20: N in N2O as % of N in N fertilizer | C20: 0.01325 | E20: GREET 1 2013
B21: N in N2O as % of N in biomass | C21: 0.01225 | E21: GREET 1 2013
B22: d. Cane Transport
B23: Raw feedstock to collection point by MDT, mi | C23: 2 | E23: GREET 1 2013
B24: To Ethanol plant by HDDT mi | C24: User Defined
B25: e. Straw Burning
B26: Straw yield: dry tonne/wet tonne of sugarcane | C26: 0.2142 | E26: CA-GREET2.0
B27: Moisture in straw | C27: 0.15 | E27: CA-GREET2.0
B28: Burn Field, % | C28: 1 | E28: CA-GREET2.0
B29: f. Mechanized Harvesting Credit
B30: Mechanized field, % | C30: User Defined or Standard at 65%
B31: g. Filter Cake T&D, miles | C31: same as cane transport
B32: h. Sugar Production
B33: CO2e/wet tonne of cane | D33: 3700 | E33: Gopal et al, 2009. “Molasses for ethanol: the economic and environmental impacts of a new pathway for the lifecycle greenhouse gas analysis of sugarcane ethanol,” Gopal, A., and Kammen, D., Environmental Research Letters, 4 (2009) 044005 (5pp).
B34: i. Ethanol Production
B35: Total Plant Energy (Btu/gal)
B36: Residual oil | C36: 300 | E36: CA-GREET2.0
B37: Chemical Use, g/tonne of cane
B38: Lime | C38: 880 | E38: CA-GREET2.0
B39: j. Fuel Distribution
B40: Distribution by HDT to blending terminal, miles | C40: 40 | E40: CA-GREET2.0
B41: Distribution by HDT to stations, miles | C41: 50 | E41: CA-GREET2.0
B42: k. Fuel Properties
B43: Density of EtOH (LHV), grams/gal | C43: 2988 | E43: CA-GREET2.0
B44: Sugarcane bagasse, Btu/ton | C44: 12381771.31 | E44: CA-GREET2.0
B45: Bagasse yield: wet tonne per wet tonne of sugarcane | C45: 0.28 | E45: CA-GREET2.0
B46: Moisture in bagasse | C46: 0.5 | E46: CA-GREET2.0
B47: steam generation efficiency | C47: 0.8 | E47: CA-GREET2.0
B48: Power Generation Efficiency | C48: 0.3 | E48: CA-GREET2.0
B49: l. Sugarcane bagasse, emissions, grams/mmBtu fuel burned | C49: Small Industrial Boiler | E49: GREET 1 2013
B50: m. Electrciity Mix emissions, grams/mmBtu Available at User Sites | C50: Brazil Electricity Mix | E50: CA-GREET2.0
B51: n. Electric Transmission and Distribution Loss | C51: 8.1% (Brazil) | E51: CA-GREET1.8b Appendix
B63: Unit conversion
B78: Ethanol fuel properties
D79: LHV
B80: Density of EtOH, grams/gal | D80: 2988
B82: Sugarcane bagasse, Btu/ton | D82: 12381771.31 | G82: Bagasse, Btu/metric ton | H82: =Reference!D82/Calculation!$Q$18 -> 13648566.57
B83: Bagasse yield: wet tonne per wet tonne of sugarcane | C83: 0.28 | G83: steam generation efficiency | H83: 0.8
B84: Moisture in bagasse | C84: 0.5 | G84: Power Generation Efficiency | H84: 0.3
